bitfinex/quotes_SOLUSD_20250106
["timestamp","ask_amount","ask_price","bid_price","bid_amount"]
[1736170428813,13.89287375,218.03,218.0,50.0]
[1736170429006,13.89287375,218.02,218.0,50.0]
[1736170429206,13.89287375,218.01,218.0,50.0]
[1736170430193,13.5436,218.09,218.0,50.0]
[1736170430393,13.89287375,218.02,218.0,50.0]
[1736170430914,13.1098,218.13,218.0,50.0]
[1736170431092,13.1098,218.13,218.01,13.89287375]
[1736170431417,13.89287375,218.08,218.01,13.89287375]
[1736170431787,27.9168,218.18,218.01,13.89287375]
[1736170431788,6.5194,218.19,218.04,33.89287375]
[1736170432004,13.89287375,218.12,218.05,13.89287375]
[1736170432213,13.89287375,218.12,218.06,13.89287375]
[1736170432890,13.89287375,218.12,218.05,13.89287375]
[1736170433604,13.89287375,218.11,218.05,13.89287375]
[1736170433801,13.89287375,218.11,218.04,33.89287375]
[1736170433996,13.89287375,218.1,218.03,13.89287375]
[1736170434601,28.776884,218.17,218.02,13.89287375]
[1736170434602,13.89287375,218.09,218.02,13.89287375]
[1736170436009,13.89287375,218.07,218.01,21.90287375]
[1736170436206,13.89287375,218.05,218.01,8.01]
[1736170436517,13.89287375,218.04,218.0,50.0]
[1736170436717,13.89287375,218.05,218.0,50.0]
[1736170436920,13.89287375,218.06,218.0,50.0]
[1736170437501,13.89287375,218.05,218.0,50.0]
[1736170438103,13.89287375,218.06,218.0,50.0]
[1736170439331,13.89287375,218.05,218.0,50.0]
[1736170439707,13.89287375,218.09,218.02,13.89287375]
[1736170439908,13.89287375,218.09,218.0,50.0]
[1736170439909,13.89287375,218.08,218.01,13.89287375]
[1736170440126,13.89287375,218.07,218.0,63.89287375]
[1736170440427,13.89287375,218.08,218.01,13.89287375]
[1736170440805,13.89287375,218.07,218.0,63.89287375]
[1736170441214,13.89287375,218.06,218.0,50.0]
[1736170441410,13.89287375,218.05,218.0,50.0]
[1736170442231,13.89287375,218.03,218.0,50.0]
[1736170443313,13.89287375,218.01,218.0,50.0]
[1736170444326,37.66975775,218.01,218.0,50.0]
[1736170450333,37.66975775,218.01,218.0,45.39784071]
[1736170450549,37.66975775,218.01,217.77,11.50177779]
[1736170450550,23.776884,217.96,217.77,11.50177779]
[1736170450743,23.776884,217.96,217.81,13.89287375]
[1736170450744,20.0,217.96,217.81,13.89287375]
[1736170451060,2.08,217.96,217.85,13.89287375]
[1736170451242,13.89287375,217.93,217.86,13.89287375]
[1736170451426,13.89287375,217.93,217.87,13.89287375]
[1736170452346,13.89287375,217.93,217.86,21.87527375]
[1736170452551,13.89287375,217.91,217.86,7.9824]
[1736170452756,13.89287375,217.89,217.86,7.9824]
[1736170453050,13.89287375,217.89,217.82,13.89287375]
[1736170453349,13.89287375,217.88,217.81,21.78977375]
[1736170453654,13.89287375,217.86,217.81,7.8969]
[1736170453817,13.89287375,217.9,217.83,13.89287375]
[1736170454446,23.776884,217.93,217.84,13.89287375]
[1736170454625,13.89287375,217.91,217.85,13.89287375]
[1736170455038,13.89287375,217.91,217.84,13.89287375]
[1736170455418,13.89287375,217.92,217.85,13.89287375]
[1736170458347,13.89287375,217.91,217.85,13.89287375]
[1736170458845,13.89287375,217.92,217.85,13.89287375]
[1736170459949,13.89287375,217.92,217.86,13.89287375]
[1736170460124,13.89287375,217.96,217.9,13.89287375]
[1736170460323,13.89287375,217.91,217.83,13.89287375]
[1736170460524,13.89287375,217.9,217.83,13.89287375]
[1736170460938,13.89287375,217.91,217.84,33.89287375]
[1736170461253,13.89287375,217.94,217.87,13.89287375]
[1736170461429,13.89287375,217.92,217.86,13.89287375]
[1736170461747,13.89287375,217.9,217.83,13.89287375]
[1736170461956,13.89287375,217.92,217.85,13.89287375]
[1736170462524,13.89287375,217.92,217.81,19.3746]
[1736170462525,13.89287375,217.91,217.84,33.89287375]
[1736170463023,13.89287375,217.9,217.83,13.89287375]
[1736170463250,13.89287375,217.89,217.83,13.89287375]
[1736170463455,13.89287375,217.88,217.81,21.78977375]
[1736170463632,13.89287375,217.93,217.86,13.89287375]
[1736170463824,13.89287375,217.93,217.87,13.89287375]
[1736170464029,13.89287375,217.94,217.87,13.89287375]
[1736170464242,13.89287375,217.96,217.89,13.89287375]
[1736170464753,13.89287375,217.96,217.9,13.89287375]
[1736170464933,13.89287375,217.97,217.9,13.89287375]
[1736170465455,13.89287375,217.97,217.9,21.90447375]
[1736170465650,13.89287375,217.96,217.9,8.0116]
[1736170466245,13.89287375,217.94,217.87,15.97287375]
[1736170467852,13.89287375,217.95,217.88,13.89287375]
[1736170468258,13.89287375,217.94,217.89,20.0]
[1736170469648,23.776884,218.01,217.92,13.89287375]
[1736170469828,13.89287375,217.99,217.92,13.89287375]
[1736170470349,13.89287375,218.01,217.94,13.89287375]
[1736170471862,13.89287375,218.01,217.95,13.89287375]
[1736170472424,13.89287375,218.02,217.95,13.89287375]
[1736170473660,13.89287375,218.01,217.95,13.89287375]
[1736170474266,13.89287375,218.02,217.95,13.89287375]
[1736170475362,13.89287375,218.01,217.94,15.97287375]
[1736170478590,23.776884,218.05,217.94,15.97287375]
[1736170478765,13.89287375,217.98,217.93,8.0116]
[1736170478971,13.89287375,217.96,217.93,8.0116]
[1736170479472,13.89287375,217.94,217.87,13.89287375]
[1736170479769,13.89287375,217.93,217.86,21.83957375]
[1736170481167,13.89287375,217.93,217.87,13.89287375]
[1736170481664,13.89287375,217.95,217.88,13.89287375]
[1736170481867,13.89287375,217.97,217.91,13.89287375]
[1736170482053,20.0,218.06,217.91,13.89287375]
[1736170482054,13.89287375,217.99,217.92,13.89287375]
[1736170482378,13.89287375,218.0,217.93,13.89287375]
[1736170482874,13.89287375,217.99,217.92,13.89287375]
[1736170483684,13.79287375,217.99,217.92,13.89287375]
[1736170484987,13.89287375,218.02,217.95,13.89287375]
[1736170486357,13.89287375,218.03,217.96,13.89287375]
[1736170486558,1.82159312,218.08,217.95,7.8576]
[1736170486559,13.89287375,218.05,217.98,13.89287375]
[1736170486958,13.89287375,218.06,217.99,13.89287375]
[1736170487472,13.89287375,218.06,218.0,13.89287375]
[1736170488608,13.89287375,218.04,217.97,13.89287375]
[1736170488784,13.89287375,218.04,217.95,7.8576]
[1736170488785,13.89287375,218.02,217.95,21.75047375]
[1736170488951,13.89287375,218.02,217.95,23.85047375]
[1736170489282,23.776884,218.08,217.95,7.8576]
[1736170489485,13.89287375,218.0,217.95,7.8576]
[1736170489672,13.89287375,218.01,217.95,7.8576]
[1736170489876,23.776884,218.08,217.96,13.89287375]
[1736170489877,13.89287375,218.02,217.96,13.89287375]
[1736170490081,13.89287375,218.02,217.95,21.75047375]
[1736170490278,23.776884,218.08,217.96,13.89287375]
[1736170490279,13.89287375,218.03,217.96,13.89287375]
[1736170490467,13.89287375,218.03,217.97,13.89287375]
[1736170490681,13.89287375,218.04,217.97,13.89287375]
[1736170490995,13.89287375,218.07,218.0,13.89287375]
[1736170491663,13.89287375,218.06,218.0,13.89287375]
[1736170492088,13.89287375,218.06,217.99,13.89287375]
[1736170492464,13.89287375,218.03,217.96,13.89287375]
[1736170493671,13.89287375,218.01,217.95,21.75047375]
[1736170495075,13.89287375,218.0,217.95,7.8576]
[1736170495785,13.89287375,218.01,217.95,21.75047375]
[1736170496468,23.776884,218.06,217.96,13.89287375]
[1736170496469,13.89287375,218.03,217.96,13.89287375]
[1736170497292,13.89287375,218.02,217.95,21.75047375]
[1736170497499,23.776884,218.06,217.95,21.75047375]
[1736170497500,13.89287375,218.01,217.95,21.75047375]
[1736170497711,21.83602369,218.09,217.93,15.99287375]
[1736170497712,13.89287375,217.99,217.93,15.99287375]
[1736170497875,13.89287375,217.99,217.86,0.68819088]
[1736170497876,13.89287375,217.97,217.9,23.85707375]
[1736170498599,13.89287375,217.98,217.91,13.89287375]
[1736170498992,13.89287375,217.99,217.92,13.89287375]
[1736170499173,13.89287375,218.0,217.93,13.89287375]
[1736170500505,13.89287375,217.98,217.91,13.89287375]
[1736170500704,13.89287375,217.99,217.92,13.89287375]
[1736170502505,13.89287375,217.98,217.91,13.89287375]
[1736170502873,13.89287375,217.97,217.9,21.75707375]
[1736170503476,13.89287375,218.0,217.93,13.89287375]
[1736170503692,13.89287375,217.99,217.92,13.89287375]
[1736170504309,13.89287375,218.01,217.94,13.89287375]
[1736170504512,13.89287375,218.03,217.96,13.89287375]
[1736170504980,13.89287375,218.02,217.95,13.89287375]
[1736170505308,13.89287375,218.0,217.93,33.89287375]
[1736170505991,23.776884,218.05,217.94,13.89287375]
[1736170505992,13.89287375,218.01,217.94,13.89287375]
[1736170507019,13.89287375,218.03,217.97,13.89287375]
[1736170507814,13.89287375,218.04,217.97,13.89287375]
[1736170508780,13.89287375,218.08,218.02,13.89287375]
[1736170509683,13.89287375,218.07,218.0,13.89287375]
[1736170510307,13.89287375,218.06,217.99,13.89287375]
[1736170510610,13.89287375,218.04,217.97,13.89287375]
[1736170510914,13.89287375,218.03,217.96,13.89287375]
[1736170511314,13.89287375,218.04,217.97,13.89287375]
[1736170513001,13.89287375,218.05,217.98,13.89287375]
[1736170513302,5.0,218.14,217.98,13.89287375]
[1736170513303,1.5685,218.15,218.03,13.89287375]
[1736170513643,13.89287375,218.11,218.03,13.89287375]
[1736170513926,13.89287375,218.08,218.01,13.89287375]
[1736170514217,13.89287375,218.08,218.0,13.89287375]
[1736170514913,13.89287375,218.08,217.98,8.0783]
[1736170514914,13.89287375,218.05,217.95,20.0]
[1736170515104,13.89287375,218.05,217.98,13.89287375]
[1736170515303,13.89287375,218.05,217.97,13.89287375]
[1736170515507,13.89287375,218.04,217.96,13.89287375]
[1736170516414,13.89287375,218.02,217.95,13.89287375]
[1736170517410,13.89287375,218.02,217.94,13.89287375]
[1736170518219,13.89287375,218.02,217.95,13.89287375]
[1736170519191,23.776884,218.05,217.97,13.89287375]
[1736170519395,13.89287375,218.05,217.97,13.89287375]
[1736170519909,13.89287375,218.05,217.98,13.89287375]
[1736170520301,13.89287375,218.09,218.02,13.89287375]
[1736170520722,13.89287375,218.1,218.03,13.89287375]
[1736170521005,13.89287375,218.11,218.0,2.08]
[1736170521204,13.89287375,218.12,218.05,13.89287375]
[1736170521601,13.89287375,218.13,218.06,13.89287375]
[1736170522031,13.89287375,218.12,218.05,13.89287375]
[1736170522212,13.89287375,218.13,218.06,13.89287375]
[1736170522902,13.89287375,218.12,218.05,13.89287375]
[1736170523207,20.0,218.14,218.04,13.89287375]
[1736170523208,13.89287375,218.1,218.04,13.89287375]
[1736170523653,13.89287375,218.11,218.04,13.89287375]
[1736170523833,13.89287375,218.12,218.05,13.89287375]
[1736170524017,13.89287375,218.12,218.0,2.08]
[1736170524018,13.89287375,218.1,218.04,13.89287375]
[1736170524218,13.89287375,218.09,218.03,13.89287375]
[1736170524414,13.89287375,218.08,218.02,13.89287375]
[1736170524617,13.89287375,218.07,218.0,13.89287375]
[1736170525129,13.89287375,218.06,218.0,13.89287375]
[1736170525603,13.89287375,218.05,217.98,13.89287375]
[1736170525809,13.89287375,218.04,217.98,13.89287375]
[1736170526214,13.89287375,218.04,217.97,13.89287375]
[1736170526620,13.89287375,218.04,217.98,13.89287375]
[1736170526827,13.89287375,218.05,217.99,13.89287375]
[1736170527031,13.89287375,218.06,218.0,13.89287375]
[1736170527207,15.50557375,218.08,218.01,13.89287375]
[1736170527408,13.89287375,218.08,218.02,13.89287375]
[1736170527613,3.7407,218.13,217.96,0.68805703]
[1736170527614,13.89287375,218.09,218.03,13.89287375]
[1736170527814,13.89287375,218.08,218.02,13.89287375]
[1736170528809,13.89287375,218.08,218.01,13.89287375]
[1736170529541,13.89287375,218.05,217.99,15.97287375]
[1736170529940,13.89287375,218.05,217.99,13.89287375]
[1736170530460,13.89287375,218.04,217.98,13.89287375]
[1736170530617,13.89287375,218.05,217.99,13.89287375]
[1736170530822,13.89287375,218.05,217.98,13.89287375]
[1736170531223,13.89287375,218.04,217.98,13.89287375]
[1736170532452,13.89287375,218.03,217.97,13.89287375]
[1736170533248,13.89287375,218.04,217.98,13.89287375]
[1736170533666,13.89287375,218.05,217.98,13.89287375]
[1736170533855,13.89287375,218.06,217.99,13.89287375]
[1736170534227,13.89287375,218.05,217.98,13.89287375]
[1736170535457,13.89287375,218.08,218.01,13.89287375]
[1736170535641,13.89287375,218.1,218.02,13.89287375]
[1736170536031,13.89287375,218.1,218.03,13.89287375]
[1736170536966,13.89287375,218.11,218.04,13.89287375]
[1736170537254,23.776884,218.12,218.05,13.89287375]
[1736170537255,13.89287375,218.12,218.05,13.89287375]
[1736170538526,13.89287375,218.12,218.06,13.89287375]
[1736170539966,11.4558,218.23,218.11,13.89287375]
[1736170540129,13.89287375,218.19,218.13,13.89287375]
[1736170540536,13.89287375,218.18,218.12,13.89287375]
[1736170540762,13.89287375,218.19,218.13,13.89287375]
[1736170541064,13.89287375,218.2,218.13,13.89287375]
[1736170541246,13.89287375,218.2,218.08,2.08]
[1736170541247,13.89287375,218.15,218.08,2.08]
[1736170541436,13.89287375,218.15,218.09,13.89287375]
[1736170542153,13.89287375,218.15,218.08,13.89287375]
[1736170542544,13.89287375,218.15,218.09,13.89287375]
[1736170543170,13.89287375,218.17,218.1,13.89287375]
[1736170543481,13.89287375,218.18,218.11,13.89287375]
[1736170543651,13.89287375,218.19,218.13,13.89287375]
[1736170544047,13.89287375,218.19,218.12,13.89287375]
[1736170545451,13.89287375,218.18,218.11,13.89287375]
[1736170545987,13.89287375,218.17,218.1,13.89287375]
[1736170546272,23.776884,218.21,218.08,13.89287375]
[1736170546273,13.89287375,218.15,218.08,13.89287375]
[1736170546477,13.89287375,218.14,218.07,15.97287375]
[1736170546644,13.89287375,218.1,218.04,15.97287375]
[1736170546849,23.776884,218.04,217.97,7.22284339]
[1736170547049,13.89287375,217.98,217.92,15.82350596]
[1736170547270,13.89287375,217.96,217.92,12.38224536]
[1736170547960,13.89287375,217.95,217.88,13.89287375]
[1736170548160,13.89287375,217.96,217.89,13.89287375]
[1736170548875,13.89287375,217.96,217.9,13.89287375]
[1736170549581,13.89287375,217.96,217.89,13.89287375]
[1736170549782,13.89287375,217.96,217.9,13.89287375]
[1736170552181,13.89287375,217.97,217.9,13.89287375]
[1736170552878,1.88741123,218.04,217.86,2.08]
[1736170552879,13.89287375,218.0,217.94,13.89287375]
[1736170553178,13.89287375,217.99,217.93,13.89287375]
[1736170553384,23.776884,218.02,217.86,2.08]
[1736170553385,13.89287375,218.01,217.94,13.89287375]
[1736170556580,13.89287375,218.04,217.98,13.89287375]
[1736170556879,13.1145,218.09,218.0,13.89287375]
[1736170556880,13.89287375,218.06,218.0,13.89287375]
[1736170557063,13.89287375,218.07,218.0,13.89287375]
[1736170557267,13.89287375,218.07,218.01,13.89287375]
[1736170558997,13.89287375,218.07,218.0,13.89287375]
[1736170559583,13.89287375,218.08,218.01,13.89287375]
[1736170559983,13.89287375,218.09,218.02,13.89287375]
[1736170560897,13.89287375,218.11,218.04,13.89287375]
[1736170561598,13.89287375,218.12,218.06,13.89287375]
[1736170561782,13.89287375,218.15,218.08,13.89287375]
[1736170561985,13.89287375,218.16,218.09,13.89287375]
[1736170563603,13.89287375,218.14,218.07,13.89287375]
[1736170564285,13.89287375,218.13,218.06,13.89287375]
[1736170564690,13.89287375,218.13,218.07,13.89287375]
[1736170565304,13.89287375,218.15,218.08,13.89287375]
[1736170567789,13.89287375,218.15,218.05,2.1]
[1736170567790,13.89287375,218.18,218.11,13.89287375]
[1736170567999,33.89287375,218.18,218.11,13.89287375]
[1736170568198,13.89287375,218.18,218.11,13.89287375]
[1736170568495,13.89287375,218.16,218.1,13.89287375]
[1736170568874,13.89287375,218.18,218.11,13.89287375]
[1736170569106,13.89287375,218.18,218.12,13.89287375]
[1736170569484,13.89287375,218.18,218.11,13.89287375]
[1736170570214,13.89287375,218.17,218.11,13.89287375]
[1736170571306,13.89287375,218.18,218.11,13.89287375]
[1736170571609,37.66975775,218.19,218.12,13.89287375]
[1736170572381,37.66975775,218.19,218.13,13.89287375]
[1736170575509,13.89287375,218.17,218.11,13.89287375]
[1736170575688,13.89287375,218.17,218.1,13.89287375]
[1736170576228,13.89287375,218.17,218.11,13.89287375]
[1736170576611,13.89287375,218.18,218.12,13.89287375]
[1736170577915,37.66975775,218.19,218.12,13.89287375]
[1736170578095,13.89287375,218.19,218.13,13.89287375]
[1736170578298,13.89287375,218.35,218.15,13.89287375]
[1736170578299,13.89287375,218.21,218.15,13.89287375]
[1736170578492,13.89287375,218.22,218.15,13.89287375]
[1736170578808,13.89287375,218.22,218.16,13.89287375]
[1736170579213,13.89287375,218.21,218.15,13.89287375]
[1736170579510,13.89287375,218.19,218.13,13.89287375]
[1736170579712,13.89287375,218.2,218.13,13.89287375]
[1736170580085,13.89287375,218.19,218.12,15.99287375]
[1736170583817,13.89287375,218.19,218.13,13.89287375]
[1736170584196,13.89287375,218.2,218.13,13.89287375]
[1736170585319,13.89287375,218.21,218.14,13.89287375]
[1736170585498,13.89287375,218.22,218.15,13.89287375]
[1736170585995,13.89287375,218.21,218.14,13.89287375]
[1736170587603,13.89287375,218.19,218.13,13.89287375]
[1736170588023,13.89287375,218.18,218.12,15.99287375]
[1736170588403,13.89287375,218.18,218.12,13.89287375]
[1736170588602,13.89287375,218.19,218.12,13.89287375]
[1736170589094,13.89287375,218.18,218.12,13.89287375]
[1736170589896,13.89287375,218.19,218.13,13.89287375]
[1736170590511,13.89287375,218.2,218.13,13.89287375]
[1736170591121,13.89287375,218.2,218.14,13.89287375]
[1736170592529,13.89287375,218.21,218.14,13.89287375]
[1736170592835,3.49150072,218.25,218.18,13.89287375]
[1736170592836,15.73407447,218.25,218.18,13.89287375]
[1736170593003,13.89287375,218.24,218.18,13.89287375]
[1736170593204,13.89287375,218.25,218.18,13.89287375]
[1736170593704,37.66975775,218.24,218.18,13.89287375]
[1736170595446,13.89287375,218.25,218.18,13.89287375]
[1736170595620,23.776884,218.24,218.18,13.89287375]
[1736170595820,37.66975775,218.24,218.18,13.89287375]
[1736170596315,13.89287375,218.24,218.18,13.89287375]
[1736170597012,23.776884,218.26,218.21,13.89287375]
[1736170597221,15.70996417,218.27,218.21,13.89287375]
[1736170597534,23.776884,218.26,218.21,13.89287375]
[1736170597826,13.89287375,218.28,218.21,13.89287375]
[1736170598029,13.89287375,218.29,218.22,13.89287375]
[1736170598417,13.89287375,218.29,218.23,13.89287375]
[1736170598928,13.89287375,218.29,218.22,15.95287375]
[1736170599727,13.89287375,218.26,218.2,13.89287375]
[1736170599932,13.89287375,218.26,218.19,15.95287375]
[1736170600141,13.89287375,218.26,218.19,13.89287375]
[1736170600312,13.89287375,218.25,218.18,15.95287375]
[1736170600511,13.89287375,218.25,218.18,13.89287375]
[1736170600933,13.89287375,218.25,218.19,13.89287375]
[1736170601312,13.89287375,218.24,218.17,13.89287375]
[1736170601527,13.89287375,218.23,218.17,13.89287375]
[1736170603039,23.776884,218.23,218.17,13.89287375]
[1736170603334,13.89287375,218.23,218.16,13.89287375]
[1736170603635,13.89287375,218.22,218.16,13.89287375]
[1736170603930,13.89287375,218.23,218.17,13.89287375]
[1736170605038,13.89287375,218.24,218.17,13.89287375]
[1736170605616,13.89287375,218.25,218.18,13.89287375]
[1736170606831,13.89287375,218.26,218.2,13.89287375]
[1736170607013,13.89287375,218.27,218.21,13.89287375]
[1736170608532,13.89287375,218.25,218.19,13.89287375]
[1736170608714,13.89287375,218.24,218.17,13.89287375]
[1736170608916,13.89287375,218.22,218.14,20.0]
[1736170609216,13.89287375,218.22,218.15,15.95287375]
[1736170609418,13.89287375,218.23,218.17,13.89287375]
[1736170609612,13.89287375,218.24,218.17,13.89287375]
[1736170611221,13.89287375,218.24,218.18,13.89287375]
[1736170611410,13.89287375,218.26,218.2,13.89287375]
[1736170611723,13.89287375,218.27,218.21,13.89287375]
[1736170611925,13.89287375,218.27,218.22,2.06]
[1736170612318,13.89287375,218.26,218.22,2.06]
[1736170612515,13.89287375,218.25,218.22,2.06]
[1736170613137,13.89287375,218.24,218.2,2.06]
[1736170613318,13.89287375,218.23,218.18,2.06]
[1736170615143,11.4537,218.27,218.16,2.06]
[1736170615144,13.89287375,218.22,218.16,2.06]
[1736170617044,8.87969594,218.22,218.16,2.06]
[1736170617646,8.87969594,218.22,218.15,8.87969594]
[1736170617820,8.87969594,218.22,218.16,2.06]
[1736170618842,1.5304,218.31,218.16,10.93969594]
[1736170618843,8.87969594,218.23,218.16,10.93969594]
[1736170619646,8.87969594,218.23,218.17,8.87969594]
[1736170622615,8.87969594,218.23,218.16,10.93969594]
[1736170622817,8.87969594,218.22,218.16,2.06]
[1736170623544,25.58799387,218.26,218.14,8.87969594]
[1736170623545,8.87969594,218.21,218.14,8.87969594]
[1736170623752,8.87969594,218.2,218.14,2.06]
[1736170624246,8.87969594,218.2,218.13,8.87969594]
[1736170624427,8.87969594,218.2,218.14,2.06]
[1736170625323,32.65657994,218.19,218.14,2.06]
[1736170625542,8.87969594,218.17,218.11,8.87969594]
[1736170625723,8.87969594,218.17,218.11,10.93969594]
[1736170625922,8.87969594,218.18,218.11,10.93969594]
[1736170627138,23.776884,218.21,218.12,8.87969594]
[1736170627315,8.87969594,218.19,218.13,8.87969594]
[1736170628025,8.87969594,218.18,218.11,10.93969594]
[1736170628231,23.776884,218.21,218.09,20.0]
[1736170628232,8.87969594,218.16,218.09,8.87969594]
[1736170628432,1.6355,218.22,218.1,2.04]
[1736170628433,8.87969594,218.14,218.1,2.04]
[1736170628841,23.776884,218.13,218.07,10.91969594]
[1736170629030,8.87969594,218.14,218.08,8.87969594]
[1736170629231,8.87969594,218.15,218.08,8.87969594]
[1736170629453,8.87969594,218.14,218.07,2.04]
[1736170629745,8.87969594,218.14,218.08,8.87969594]
[1736170630154,20.0,218.21,218.12,8.87969594]
[1736170630331,8.87969594,218.19,218.13,8.87969594]
[1736170630734,23.776884,218.19,218.13,8.87969594]
[1736170631046,8.87969594,218.17,218.06,8.65581019]
[1736170631225,8.87969594,218.16,218.07,2.04]
[1736170631423,8.87969594,218.16,218.09,8.87969594]
[1736170631926,8.87969594,218.16,218.07,2.04]
[1736170632240,8.87969594,218.15,218.08,8.87969594]
[1736170632546,23.776884,218.14,218.08,8.87969594]
[1736170632747,8.87969594,218.17,218.1,8.87969594]
[1736170633331,23.776884,218.16,218.1,8.87969594]
[1736170634331,8.87969594,218.15,218.07,2.04]
[1736170634531,8.87969594,218.16,218.1,8.87969594]
[1736170636349,8.87969594,218.16,218.09,8.87969594]
[1736170637751,8.87969594,218.16,218.1,8.87969594]
[1736170637937,8.87969594,218.16,218.09,8.87969594]
[1736170639342,8.87969594,218.14,218.05,20.0]
[1736170639531,8.87969594,218.14,217.98,5.0]
[1736170639532,8.87969594,218.06,217.94,14.27611729]
[1736170639738,8.87969594,218.05,217.98,8.87969594]
[1736170640447,8.87969594,218.06,217.99,8.87969594]
[1736170642534,8.87969594,218.03,217.98,2.04]
[1736170642732,8.87969594,218.02,217.98,2.04]
[1736170642938,8.87969594,218.03,217.98,2.04]
[1736170643440,8.87969594,218.04,217.98,2.04]
[1736170643942,23.776884,218.04,217.98,10.91969594]
[1736170644341,8.87969594,218.04,217.98,2.04]
[1736170644842,8.87969594,218.04,217.98,10.91969594]
[1736170645228,8.87969594,218.04,217.98,8.87969594]
[1736170645651,23.776884,218.04,217.98,8.87969594]
[1736170646064,8.87969594,218.05,217.99,8.87969594]
[1736170646280,1.5869,218.12,218.0,8.87969594]
[1736170646281,8.87969594,218.07,218.0,8.87969594]
[1736170646569,23.776884,218.09,218.03,8.87969594]
[1736170646767,23.776884,218.09,218.04,8.87969594]
[1736170647063,8.87969594,218.09,218.02,8.87969594]
[1736170647651,23.776884,218.11,218.04,8.87969594]
[1736170647652,8.87969594,218.1,218.04,8.87969594]
[1736170647856,8.87969594,218.11,218.05,8.87969594]
[1736170648071,8.87969594,218.12,218.06,8.87969594]
[1736170649457,23.776884,218.11,218.05,8.87969594]
[1736170649658,23.776884,218.11,218.06,8.87969594]
[1736170650158,8.87969594,218.13,218.07,8.87969594]
[1736170650467,8.87969594,218.16,218.09,8.87969594]
[1736170650669,8.87969594,218.17,218.1,8.87969594]
[1736170650875,23.776884,218.16,218.1,8.87969594]
[1736170651069,8.87969594,218.17,218.1,8.87969594]
[1736170651476,13.1188,218.23,218.12,8.87969594]
[1736170651677,8.87969594,218.18,218.12,8.87969594]
[1736170652856,8.87969594,218.18,218.11,8.87969594]
[1736170653058,13.8802465,218.18,218.11,13.8802465]
[1736170654870,13.8802465,218.16,218.09,13.8802465]
[1736170655076,13.8802465,218.15,218.09,13.8802465]
[1736170655286,13.8802465,218.15,218.08,13.8802465]
[1736170655661,13.8802465,218.17,218.1,13.8802465]
[1736170655880,13.8802465,218.18,218.11,13.8802465]
[1736170657384,23.776884,218.17,218.12,13.8802465]
[1736170659365,23.776884,218.18,218.12,13.8802465]
[1736170660585,13.8802465,218.2,218.13,13.8802465]
[1736170660758,13.8802465,218.21,218.14,13.8802465]
[1736170660963,23.776884,218.2,218.14,13.8802465]
[1736170661171,13.8802465,218.21,218.14,13.8802465]
[1736170661489,13.8802465,218.21,218.15,13.8802465]
[1736170662198,13.8802465,218.22,218.16,13.8802465]
[1736170662367,13.8802465,218.23,218.16,13.8802465]
[1736170662566,13.8802465,218.24,218.17,13.8802465]
[1736170663774,13.8802465,218.23,218.16,13.8802465]
[1736170664176,13.8802465,218.22,218.16,13.8802465]
[1736170665492,13.8802465,218.22,218.15,13.8802465]
[1736170666088,23.776884,218.26,218.18,13.8802465]
[1736170666391,13.8802465,218.25,218.18,13.8802465]
[1736170666898,13.8802465,218.23,218.17,13.8802465]
[1736170667079,13.8802465,218.23,218.16,13.8802465]
[1736170667696,13.8802465,218.2,218.14,15.9202465]
[1736170668080,13.8802465,218.19,218.14,2.04]
[1736170668272,13.8802465,218.19,218.12,13.8802465]
[1736170668674,13.8802465,218.19,218.13,13.8802465]
[1736170668875,13.8802465,218.2,218.14,13.8802465]
[1736170669988,13.8802465,218.2,218.13,13.8802465]
[1736170671394,13.8802465,218.21,218.14,13.8802465]
[1736170671900,13.8802465,218.22,218.15,13.8802465]
[1736170672999,8.88011973,218.22,218.15,8.88011973]
[1736170673906,23.776884,218.24,218.14,8.88011973]
[1736170674080,8.88011973,218.2,218.14,8.88011973]
[1736170674271,8.88011973,218.21,218.15,8.88011973]
[1736170675702,8.88011973,218.21,218.14,8.88011973]
[1736170676310,8.88011973,218.2,218.13,8.88011973]
[1736170676503,8.88011973,218.17,218.11,8.88011973]
[1736170677109,8.88011973,218.18,218.11,8.88011973]
[1736170677608,8.88011973,218.19,218.12,8.88011973]
[1736170678375,8.88011973,218.22,218.15,8.88011973]
[1736170678591,23.776884,218.23,218.16,8.88011973]
[1736170678903,32.65700373,218.23,218.16,8.88011973]
[1736170679280,8.88011973,218.22,218.15,8.88011973]
[1736170679502,8.88011973,218.21,218.12,20.0]
[1736170679701,8.88011973,218.21,218.14,8.88011973]
[1736170680601,23.776884,218.23,218.1,2.04]
[1736170680803,8.88011973,218.19,218.12,8.88011973]
[1736170681098,8.88011973,218.2,218.14,8.88011973]
[1736170682503,8.88011973,218.23,218.16,8.88011973]
[1736170683105,8.88011973,218.24,218.17,8.88011973]
[1736170684182,8.88011973,218.22,218.12,20.0]
[1736170684383,8.88011973,218.21,218.14,8.88011973]
[1736170684604,8.88011973,218.2,218.13,10.92011973]
[1736170684802,8.88011973,218.19,218.13,2.04]